{"text_format":"1","workbook":"xlsx","n_sheets":3,"sheets":["請求書","契約分 (記入例)","契約外 (記入例)"],"not_rendered":{"charts":0,"images":0,"macros":1,"external_links":0,"defined_names":3,"comments":0,"pivot_tables":0},"unopened":[],"bounds":{"document_bytes":16777216,"sheet_cells":100000,"rows_first":2000,"rows_last":500,"rows_between":2000,"halvings":0,"cell_chars":16384,"cell_head_chars":4096},"cells_cut":0,"cells_raw":0,"read":"whole","date_system":"1900"}

{"sheet":"請求書","index":0,"n_rows":119,"n_cols":44,"rows_kept":119,"cut":false,"hidden":false,"merged":[[17,30,18,34],[17,35,18,45],[75,32,79,45],[13,1,16,18],[25,1,28,2],[25,3,28,8],[25,10,28,21],[111,1,119,33],[19,25,25,45],[18,1,20,2],[18,3,20,7],[18,11,21,23],[21,3,22,7],[18,8,21,9],[67,1,69,9],[67,10,69,18],[67,19,69,27],[67,28,69,36],[67,37,69,45],[52,25,54,31],[35,31,37,45],[49,1,51,10],[49,11,51,17],[49,18,51,24],[49,25,51,31],[55,39,57,45],[52,11,54,17],[63,1,65,9],[63,10,65,18],[63,19,65,27],[63,28,65,36],[63,37,65,45],[60,1,62,2],[60,3,62,10],[52,39,54,45],[55,1,57,6],[55,7,57,9],[55,10,57,10],[55,11,57,17],[55,18,57,24],[55,25,57,31],[55,32,57,38],[1,43,3,45],[1,36,3,42],[1,1,4,34],[43,39,45,45],[46,1,48,10],[46,11,48,17],[46,18,48,24],[46,25,48,31],[46,32,48,38],[46,39,48,45],[43,1,45,10],[43,11,45,17],[43,18,45,24],[43,25,45,31],[43,32,45,38],[40,3,42,14],[26,25,29,27],[26,28,29,40],[8,31,10,34],[40,1,42,2],[5,16,6,38],[26,43,28,44],[6,43,7,45],[8,43,12,45],[7,1,10,9],[7,10,10,30],[72,1,74,2],[72,3,74,14],[75,1,79,6],[75,7,79,26],[17,25,18,28],[35,25,37,30],[75,28,79,31],[52,18,54,24],[38,25,40,45],[6,40,7,42],[8,40,12,42],[31,25,34,28],[31,29,34,30],[31,31,34,34],[31,35,34,36],[31,37,34,39],[31,40,34,40],[31,41,34,45],[49,32,51,38],[49,39,51,45],[52,32,54,38],[52,1,54,10],[93,4,95,17],[93,18,95,21],[93,22,95,26],[93,27,95,33],[96,1,98,3],[96,4,98,17],[96,18,98,21],[96,22,98,26],[96,27,98,33],[93,1,95,3],[87,1,89,3],[87,4,89,17],[87,18,89,21],[87,22,89,26],[87,27,89,33],[90,1,92,3],[90,4,92,17],[90,18,92,21],[90,22,92,26],[90,27,92,33],[81,1,83,3],[81,4,83,17],[81,18,83,21],[81,22,83,26],[81,27,83,33],[84,1,86,3],[84,4,86,17],[84,18,86,21],[84,22,86,26],[84,27,86,33],[99,1,101,3],[99,4,101,17],[99,18,101,21],[99,22,101,26],[99,27,101,33],[102,1,104,3],[102,4,104,17],[102,18,104,21],[102,22,104,26],[102,27,104,33],[105,1,107,3],[105,4,107,17],[105,18,107,21],[105,22,107,26],[105,27,107,33],[108,1,110,3],[108,4,110,17],[108,18,110,21],[108,22,110,26],[108,27,110,33],[99,35,102,38],[99,39,102,45],[107,35,110,38],[107,39,110,45],[115,40,117,45],[118,35,119,45],[103,35,104,38],[103,39,106,45],[105,35,106,36],[105,37,106,38]]}
[]
[null,"　セリオスピリッツ㈱  　契約分･契約外 請求書",null,null,null,null,null,null,null,null,null,null,null,null,null,null,null,null,null,null,null,null,null,null,null,null,null,null,null,null,null,null,null,null,null,null,null,null,null,null,null,null,null,"発行"]
[]
[]
[]
[null,null,null,null,null,null,null,null,null,null,null,null,null,null,null,null,"▲ どちらかを丸囲みして下さい （※ 契約分・契約外は別々に提出して下さい）"]
[null,null,null,null,null,null,null,null,null,null,null,null,null,null,null,null,null,null,null,null,null,null,null,null,null,null,null,null,null,null,null,null,null,null,null,null,null,null,null,null,"決済",null,null,"確認"]
[null," ｾﾘｵｽﾋﾟﾘｯﾂ㈱"]
[null,null,null,null,null,null,null,null,null,null,null,null,null,null,null,null,null,null,null,null,null,null,null,null,null,null,null,null,null,null,null,"御中"]
[]
[]
[]
[]
[null,"下記の通り請求致します。"]
[]
[]
[]
[null,null,null,null,null,null,null,null,null,null,null,null,null,null,null,null,null,null,null,null,null,null,null,null,null,"請求者名",null,null,null," 【登録番号】","【登録番号】"]
[null,"①",null,"請求金額",null,null,null,null,"￥",null,null,{"$f":"IF(T68=0,AN108,T68)","v":0}]
[]
[]
[null,null,null,"(税込)"]
[]
[]
[]
[null,"➁",null,"物件番号"]
[null,null,null,null,null,null,null,null,null,null,null,null,null,null,null,null,null,null,null,null,null,null,null,null,null,"TEL",null,null,null,null,null,null,null,null,null,null,null,null,null,null,null,null,null,"㊞"]
[]
[]
[]
[]
[null,null,null,null,null,null,null,null,null,null,null,null,null,null,null,null,null,null,null,null,null,null,null,null,null,null,null,null,null,"銀行",null,null,null,null,null,"店",null,null,null,null,"№"]
[]
[]
[]
[null,null,null,null,null,null,null,null,null,null,null,null,null,null,null,null,null,null,null,null,null,null,null,null,null,"口座名義\n（カタカナ入力）"]
[]
[]
[null,null,null,null,null,null,null,null,null,null,null,null,null,null,null,null,null,null,null,null,null,null,null,null,null,"▲ 契約分・契約外、両方共に銀行口座情報をご記入下さい。"]
[]
[null,"③",null,"契約分出来高検収欄"]
[]
[]
[null,"工 事 内 容",null,null,null,null,null,null,null,null,null,"注文金額(税抜)",null,null,null,null,null,null,"前回迄出来高",null,null,null,null,null,null,"当月出来高",null,null,null,null,null,null,"累計出来高",null,null,null,null,null,null,"残　高"]
[]
[]
[null,null,null,null,null,null,null,null,null,null,null,null,null,null,null,null,null,null,null,null,null,null,null,null,null,null,null,null,null,null,null,null,{"$f":"S47+Z47","v":0},null,null,null,null,null,null,{"$f":"L47-AG47","v":0}]
[]
[]
[null,null,null,null,null,null,null,null,null,null,null,null,null,null,null,null,null,null,null,null,null,null,null,null,null,null,null,null,null,null,null,null,{"$f":"S50+Z50","v":0},null,null,null,null,null,null,{"$f":"L50-AG50","v":0}]
[]
[]
[null,"10％対象　計",null,null,null,null,null,null,null,null,null,{"$f":"SUM(L47:R52)","v":0},null,null,null,null,null,null,{"$f":"SUM(S47:Y52)","v":0},null,null,null,null,null,null,{"$f":"SUM(Z47:AF52)","v":0},null,null,null,null,null,null,{"$f":"SUM(AG47:AM52)","v":0},null,null,null,null,null,null,{"$f":"SUM(AN47:AT52)","v":0}]
[]
[]
[null,"消費税率",null,null,null,null,null,0.1,null,null,null,{"$f":"ROUND(H56*L53,0)","v":0},null,null,null,null,null,null,{"$f":"ROUND(H56*S53,0)","v":0},null,null,null,null,null,null,{"$f":"ROUND(Z53*H56,0)","v":0},null,null,null,null,null,null,{"$f":"S56+Z56","v":0},null,null,null,null,null,null,{"$f":"L56-AG56","v":0}]
[]
[]
[]
[]
[null,null,null,"請求内訳(税込)"]
[]
[]
[null,"(A) 注文金額",null,null,null,null,null,null,null,null,"(B) 前回迄請求累計",null,null,null,null,null,null,null,null,"(C) 今回請求額",null,null,null,null,null,null,null,null,"(D) 今回迄請求累計",null,null,null,null,null,null,null,null,"(E) 請求残高"]
[]
[]
[null,"(イ)+(ロ)",null,null,null,null,null,null,null,null,null,null,null,null,null,null,null,null,null,null,null,null,null,null,null,null,null,null,"(B)+(C)",null,null,null,null,null,null,null,null,"(A)-(D)"]
[null,{"$f":"L53+L56","v":0},null,null,null,null,null,null,null,null,{"$f":"S53+S56","v":0},null,null,null,null,null,null,null,null,{"$f":"Z53+Z56","v":0},null,null,null,null,null,null,null,null,{"$f":"K68+T68","v":0},null,null,null,null,null,null,null,null,{"$f":"B68-AC68","v":0}]
[]
[]
[]
[]
[null,"④",null,"契約外記入欄"]
[]
[]
[null,"工事内容\n主納品物品名",null,null,null,null,null,null,null,null,null,null,null,null,null,null,null,null,null,null,null,null,null,null,null,null,null,null,"通信欄"]
[]
[]
[]
[]
[]
[null,"月日",null,null,"内　　　　　　　容",null,null,null,null,null,null,null,null,null,null,null,null,null,"数　量",null,null,null,"単　価",null,null,null,null,"金額（税抜）"]
[]
[]
[null,null,null,null,null,null,null,null,null,null,null,null,null,null,null,null,null,null,null,null,null,null,null,null,null,null,null,{"$f":"IF(S85*W85=0,\"\",S85*W85)","v":""}]
[]
[]
[null,null,null,null,null,null,null,null,null,null,null,null,null,null,null,null,null,null,null,null,null,null,null,null,null,null,null,{"$f":"IF(S88*W88=0,\"\",S88*W88)","v":""}]
[]
[]
[null,null,null,null,null,null,null,null,null,null,null,null,null,null,null,null,null,null,null,null,null,null,null,null,null,null,null,{"$f":"IF(S91*W91=0,\"\",S91*W91)","v":""}]
[]
[]
[null,null,null,null,null,null,null,null,null,null,null,null,null,null,null,null,null,null,null,null,null,null,null,null,null,null,null,{"$f":"IF(S94*W94=0,\"\",S94*W94)","v":""}]
[]
[]
[null,null,null,null,null,null,null,null,null,null,null,null,null,null,null,null,null,null,null,null,null,null,null,null,null,null,null,{"$f":"IF(S97*W97=0,\"\",S97*W97)","v":""}]
[]
[]
[null,null,null,null,null,null,null,null,null,null,null,null,null,null,null,null,null,null,null,null,null,null,null,null,null,null,null,{"$f":"IF(S100*W100=0,\"\",S100*W100)","v":""},null,null,null,null,null,null,null,"10％対象計",null,null,null,{"$f":"SUM(AB85:AH111)","v":0}]
[]
[]
[null,null,null,null,null,null,null,null,null,null,null,null,null,null,null,null,null,null,null,null,null,null,null,null,null,null,null,{"$f":"IF(S103*W103=0,\"\",S103*W103)","v":""}]
[null,null,null,null,null,null,null,null,null,null,null,null,null,null,null,null,null,null,null,null,null,null,null,null,null,null,null,null,null,null,null,null,null,null,null,"消費税",null,null,null,{"$f":"ROUND(AN100*AL106,0)","v":0}]
[]
[null,null,null,null,null,null,null,null,null,null,null,null,null,null,null,null,null,null,null,null,null,null,null,null,null,null,null,{"$f":"IF(S106*W106=0,\"\",S106*W106)","v":""},null,null,null,null,null,null,null,"税率",null,0.1]
[]
[null,null,null,null,null,null,null,null,null,null,null,null,null,null,null,null,null,null,null,null,null,null,null,null,null,null,null,null,null,null,null,null,null,null,null,"税込合計",null,null,null,{"$f":"AN100+AN104","v":0}]
[null,null,null,null,null,null,null,null,null,null,null,null,null,null,null,null,null,null,null,null,null,null,null,null,null,null,null,{"$f":"IF(S109*W109=0,\"\",S109*W109)","v":""}]
[]
[]
[null,"　　　　※ 請求書郵送先\n　　　　　　　セリオスピリッツ ㈱　プロパティマネジメント事業部\n　　　　　　　〒700-0833　岡山市北区天瀬４番３３号\n　　　　　　　　Tel： 086-230-1135　　　Fax： 086-230-1136"]
[]
[]
[]
[null,null,null,null,null,null,null,null,null,null,null,null,null,null,null,null,null,null,null,null,null,null,null,null,null,null,null,null,null,null,null,null,null,null,null,null,null,null,null,null,"保存７年"]
[]
[]
[null,null,null,null,null,null,null,null,null,null,null,null,null,null,null,null,null,null,null,null,null,null,null,null,null,null,null,null,null,null,null,null,null,null,null,"ｾﾘｵｽﾋﾟﾘｯﾂ㈱請求書 2020.3.2"]

{"sheet":"契約分 (記入例)","index":1,"n_rows":119,"n_cols":44,"rows_kept":119,"cut":false,"hidden":false,"merged":[[111,1,119,33],[115,40,117,45],[118,35,119,45],[107,39,110,45],[108,1,110,3],[108,4,110,17],[108,18,110,21],[108,22,110,26],[108,27,110,33],[105,4,107,17],[105,18,107,21],[105,22,107,26],[105,27,107,33],[105,35,106,36],[105,37,106,38],[107,35,110,38],[99,35,102,38],[99,39,102,45],[102,1,104,3],[102,4,104,17],[102,18,104,21],[102,22,104,26],[102,27,104,33],[103,35,104,38],[103,39,106,45],[105,1,107,3],[96,1,98,3],[96,4,98,17],[96,18,98,21],[96,22,98,26],[96,27,98,33],[99,1,101,3],[99,4,101,17],[99,18,101,21],[99,22,101,26],[99,27,101,33],[90,1,92,3],[90,4,92,17],[90,18,92,21],[90,22,92,26],[90,27,92,33],[93,1,95,3],[93,4,95,17],[93,18,95,21],[93,22,95,26],[93,27,95,33],[84,1,86,3],[84,4,86,17],[84,18,86,21],[84,22,86,26],[84,27,86,33],[87,1,89,3],[87,4,89,17],[87,18,89,21],[87,22,89,26],[87,27,89,33],[75,1,79,6],[75,7,79,26],[75,28,79,31],[75,32,79,45],[81,1,83,3],[81,4,83,17],[81,18,83,21],[81,22,83,26],[81,27,83,33],[67,1,69,9],[67,10,69,18],[67,19,69,27],[67,28,69,36],[67,37,69,45],[72,1,74,2],[72,3,74,14],[55,32,57,38],[55,39,57,45],[60,1,62,2],[60,3,62,10],[63,1,65,9],[63,10,65,18],[63,19,65,27],[63,28,65,36],[63,37,65,45],[55,1,57,6],[55,7,57,9],[55,10,57,10],[55,11,57,17],[55,18,57,24],[55,25,57,31],[52,1,54,10],[52,11,54,17],[52,18,54,24],[52,25,54,31],[52,32,54,38],[52,39,54,45],[49,1,51,10],[49,11,51,17],[49,18,51,24],[49,25,51,31],[49,32,51,38],[49,39,51,45],[46,1,48,10],[46,11,48,17],[46,18,48,24],[46,25,48,31],[46,32,48,38],[46,39,48,45],[43,1,45,10],[43,11,45,17],[43,18,45,24],[43,25,45,31],[43,32,45,38],[43,39,45,45],[31,40,34,40],[31,41,34,45],[35,25,37,30],[35,31,37,45],[38,25,40,45],[40,1,42,2],[40,3,42,14],[25,3,28,8],[25,10,28,21],[26,25,29,27],[26,28,29,40],[26,43,28,44],[31,25,34,28],[31,29,34,30],[31,31,34,34],[31,35,34,36],[31,37,34,39],[13,1,16,18],[17,25,18,28],[18,1,20,2],[18,3,20,7],[18,8,21,9],[18,11,21,23],[19,25,25,45],[21,3,22,7],[25,1,28,2],[17,30,18,34],[17,35,18,45],[1,1,4,34],[1,36,3,42],[1,43,3,45],[5,16,6,38],[6,40,7,42],[6,43,7,45],[7,1,10,9],[7,10,10,30],[8,31,10,34],[8,40,12,42],[8,43,12,45]]}
[]
[null,"　セリオスピリッツ㈱  　契約分･契約外 請求書",null,null,null,null,null,null,null,null,null,null,null,null,null,null,null,null,null,null,null,null,null,null,null,null,null,null,null,null,null,null,null,null,null,null,null,null,null,null,null,null,null,"発行"]
[]
[]
[]
[null,null,null,null,null,null,null,null,null,null,null,null,null,null,null,null,"▲ どちらかを丸囲みして下さい （※ 契約分・契約外は別々に提出して下さい）"]
[null,null,null,null,null,null,null,null,null,null,null,null,null,null,null,null,null,null,null,null,null,null,null,null,null,null,null,null,null,null,null,null,null,null,null,null,null,null,null,null,"決済",null,null,"確認"]
[null," ｾﾘｵｽﾋﾟﾘｯﾂ㈱"]
[null,null,null,null,null,null,null,null,null,null,null,null,null,null,null,null,null,null,null,null,null,null,null,null,null,null,null,null,null,null,null,"御中"]
[]
[]
[]
[]
[null,"下記の通り請求致します。"]
[]
[]
[]
[null,null,null,null,null,null,null,null,null,null,null,null,null,null,null,null,null,null,null,null,null,null,null,null,null,"請求者名",null,null,null," 【登録番号】","【登録番号】"]
[null,"①",null,"請求金額",null,null,null,null,"￥",null,null,{"$f":"IF(T68=0,AN108,T68)","v":0}]
[null,null,null,null,null,null,null,null,null,null,null,null,null,null,null,null,null,null,null,null,null,null,null,null,null,"岡山県岡山市〇区〇〇町〇丁目〇〇-〇\n\n○○○○　株式会社"]
[]
[null,null,null,"(税込)"]
[]
[]
[]
[null,"➁",null,"物件番号"]
[null,null,null,null,null,null,null,null,null,null,null,null,null,null,null,null,null,null,null,null,null,null,null,null,null,"TEL",null,null,"〇〇〇-〇〇〇〇",null,null,null,null,null,null,null,null,null,null,null,null,null,null,"㊞"]
[]
[]
[]
[]
[null,null,null,null,null,null,null,null,null,null,null,null,null,null,null,null,null,null,null,null,null,null,null,null,null,null,null,null,null,"銀行",null,null,null,null,null,"店",null,null,null,null,"№"]
[]
[]
[]
[null,null,null,null,null,null,null,null,null,null,null,null,null,null,null,null,null,null,null,null,null,null,null,null,null,"口座名義\n（カタカナ入力）",null,null,null,null,null,"〇〇〇〇（カ"]
[]
[]
[null,null,null,null,null,null,null,null,null,null,null,null,null,null,null,null,null,null,null,null,null,null,null,null,null,"▲ 契約分・契約外、両方共に銀行口座情報をご記入下さい。"]
[]
[null,"③",null,"契約分出来高検収欄"]
[]
[]
[null,"工 事 内 容",null,null,null,null,null,null,null,null,null,"注文金額(税抜)",null,null,null,null,null,null,"前回迄出来高",null,null,null,null,null,null,"当月出来高",null,null,null,null,null,null,"累計出来高",null,null,null,null,null,null,"残　高"]
[]
[]
[null,null,null,null,null,null,null,null,null,null,null,null,null,null,null,null,null,null,null,null,null,null,null,null,null,null,null,null,null,null,null,null,{"$f":"S47+Z47","v":0},null,null,null,null,null,null,{"$f":"L47-AG47","v":0}]
[]
[]
[null,null,null,null,null,null,null,null,null,null,null,null,null,null,null,null,null,null,null,null,null,null,null,null,null,null,null,null,null,null,null,null,{"$f":"S50+Z50","v":0},null,null,null,null,null,null,{"$f":"L50-AG50","v":0}]
[]
[]
[null,"10％対象　計",null,null,null,null,null,null,null,null,null,{"$f":"SUM(L47:R52)","v":0},null,null,null,null,null,null,{"$f":"SUM(S47:Y52)","v":0},null,null,null,null,null,null,{"$f":"SUM(Z47:AF52)","v":0},null,null,null,null,null,null,{"$f":"SUM(AG47:AM52)","v":0},null,null,null,null,null,null,{"$f":"SUM(AN47:AT52)","v":0}]
[]
[]
[null,"消費税率",null,null,null,null,null,0.1,null,null,null,{"$f":"ROUND(H56*L53,0)","v":0},null,null,null,null,null,null,{"$f":"ROUND(H56*S53,0)","v":0},null,null,null,null,null,null,{"$f":"ROUND(Z53*H56,0)","v":0},null,null,null,null,null,null,{"$f":"S56+Z56","v":0},null,null,null,null,null,null,{"$f":"L56-AG56","v":0}]
[]
[]
[]
[]
[null,null,null,"請求内訳(税込)"]
[]
[]
[null,"(A) 注文金額",null,null,null,null,null,null,null,null,"(B) 前回迄請求累計",null,null,null,null,null,null,null,null,"(C) 今回請求額",null,null,null,null,null,null,null,null,"(D) 今回迄請求累計",null,null,null,null,null,null,null,null,"(E) 請求残高"]
[]
[]
[null,"(イ)+(ロ)",null,null,null,null,null,null,null,null,null,null,null,null,null,null,null,null,null,null,null,null,null,null,null,null,null,null,"(B)+(C)",null,null,null,null,null,null,null,null,"(A)-(D)"]
[null,{"$f":"L53+L56","v":0},null,null,null,null,null,null,null,null,{"$f":"S53+S56","v":0},null,null,null,null,null,null,null,null,{"$f":"Z53+Z56","v":0},null,null,null,null,null,null,null,null,{"$f":"K68+T68","v":0},null,null,null,null,null,null,null,null,{"$f":"B68-AC68","v":0}]
[]
[]
[]
[]
[null,"④",null,"契約外記入欄"]
[]
[]
[null,"工事内容\n主納品物品名",null,null,null,null,null,null,null,null,null,null,null,null,null,null,null,null,null,null,null,null,null,null,null,null,null,null,"通信欄"]
[]
[]
[]
[]
[]
[null,"月日",null,null,"内　　　　　　　容",null,null,null,null,null,null,null,null,null,null,null,null,null,"数　量",null,null,null,"単　価",null,null,null,null,"金額（税抜）"]
[]
[]
[null,null,null,null,null,null,null,null,null,null,null,null,null,null,null,null,null,null,null,null,null,null,null,null,null,null,null,{"$f":"IF(S85*W85=0,\"\",S85*W85)","v":""}]
[]
[]
[null,null,null,null,null,null,null,null,null,null,null,null,null,null,null,null,null,null,null,null,null,null,null,null,null,null,null,{"$f":"IF(S88*W88=0,\"\",S88*W88)","v":""}]
[]
[]
[null,null,null,null,null,null,null,null,null,null,null,null,null,null,null,null,null,null,null,null,null,null,null,null,null,null,null,{"$f":"IF(S91*W91=0,\"\",S91*W91)","v":""}]
[]
[]
[null,null,null,null,null,null,null,null,null,null,null,null,null,null,null,null,null,null,null,null,null,null,null,null,null,null,null,{"$f":"IF(S94*W94=0,\"\",S94*W94)","v":""}]
[]
[]
[null,null,null,null,null,null,null,null,null,null,null,null,null,null,null,null,null,null,null,null,null,null,null,null,null,null,null,{"$f":"IF(S97*W97=0,\"\",S97*W97)","v":""}]
[]
[]
[null,null,null,null,null,null,null,null,null,null,null,null,null,null,null,null,null,null,null,null,null,null,null,null,null,null,null,{"$f":"IF(S100*W100=0,\"\",S100*W100)","v":""},null,null,null,null,null,null,null,"税抜合計",null,null,null,{"$f":"SUM(AB85:AH111)","v":0}]
[]
[]
[null,null,null,null,null,null,null,null,null,null,null,null,null,null,null,null,null,null,null,null,null,null,null,null,null,null,null,{"$f":"IF(S103*W103=0,\"\",S103*W103)","v":""}]
[null,null,null,null,null,null,null,null,null,null,null,null,null,null,null,null,null,null,null,null,null,null,null,null,null,null,null,null,null,null,null,null,null,null,null,"消費税",null,null,null,{"$f":"ROUND(AN100*AL106,0)","v":0}]
[]
[null,null,null,null,null,null,null,null,null,null,null,null,null,null,null,null,null,null,null,null,null,null,null,null,null,null,null,{"$f":"IF(S106*W106=0,\"\",S106*W106)","v":""},null,null,null,null,null,null,null,"税率",null,0.08]
[]
[null,null,null,null,null,null,null,null,null,null,null,null,null,null,null,null,null,null,null,null,null,null,null,null,null,null,null,null,null,null,null,null,null,null,null,"税込合計",null,null,null,{"$f":"AN100+AN104","v":0}]
[null,null,null,null,null,null,null,null,null,null,null,null,null,null,null,null,null,null,null,null,null,null,null,null,null,null,null,{"$f":"IF(S109*W109=0,\"\",S109*W109)","v":""}]
[]
[]
[null,"　　　　※ 請求書郵送先\n　　　　　　　セリオスピリッツ ㈱　プロパティマネジメント事業部\n　　　　　　　〒700-0833　岡山市北区天瀬４番３３号\n　　　　　　　　Tel： 086-230-1135　　　Fax： 086-230-1136"]
[]
[]
[]
[null,null,null,null,null,null,null,null,null,null,null,null,null,null,null,null,null,null,null,null,null,null,null,null,null,null,null,null,null,null,null,null,null,null,null,null,null,null,null,null,"保存７年"]
[]
[]
[null,null,null,null,null,null,null,null,null,null,null,null,null,null,null,null,null,null,null,null,null,null,null,null,null,null,null,null,null,null,null,null,null,null,null,"ｾﾘｵｽﾋﾟﾘｯﾂ㈱請求書 2020.3.2"]

{"sheet":"契約外 (記入例)","index":2,"n_rows":119,"n_cols":44,"rows_kept":119,"cut":false,"hidden":false,"merged":[[111,1,119,33],[115,40,117,45],[118,35,119,45],[107,39,110,45],[108,1,110,3],[108,4,110,17],[108,18,110,21],[108,22,110,26],[108,27,110,33],[105,4,107,17],[105,18,107,21],[105,22,107,26],[105,27,107,33],[105,35,106,36],[105,37,106,38],[107,35,110,38],[99,35,102,38],[99,39,102,45],[102,1,104,3],[102,4,104,17],[102,18,104,21],[102,22,104,26],[102,27,104,33],[103,35,104,38],[103,39,106,45],[105,1,107,3],[96,1,98,3],[96,4,98,17],[96,18,98,21],[96,22,98,26],[96,27,98,33],[99,1,101,3],[99,4,101,17],[99,18,101,21],[99,22,101,26],[99,27,101,33],[90,1,92,3],[90,4,92,17],[90,18,92,21],[90,22,92,26],[90,27,92,33],[93,1,95,3],[93,4,95,17],[93,18,95,21],[93,22,95,26],[93,27,95,33],[84,1,86,3],[84,4,86,17],[84,18,86,21],[84,22,86,26],[84,27,86,33],[87,1,89,3],[87,4,89,17],[87,18,89,21],[87,22,89,26],[87,27,89,33],[75,1,79,6],[75,7,79,26],[75,28,79,31],[75,32,79,45],[81,1,83,3],[81,4,83,17],[81,18,83,21],[81,22,83,26],[81,27,83,33],[67,1,69,9],[67,10,69,18],[67,19,69,27],[67,28,69,36],[67,37,69,45],[72,1,74,2],[72,3,74,14],[55,32,57,38],[55,39,57,45],[60,1,62,2],[60,3,62,10],[63,1,65,9],[63,10,65,18],[63,19,65,27],[63,28,65,36],[63,37,65,45],[55,1,57,6],[55,7,57,9],[55,10,57,10],[55,11,57,17],[55,18,57,24],[55,25,57,31],[52,1,54,10],[52,11,54,17],[52,18,54,24],[52,25,54,31],[52,32,54,38],[52,39,54,45],[49,1,51,10],[49,11,51,17],[49,18,51,24],[49,25,51,31],[49,32,51,38],[49,39,51,45],[46,1,48,10],[46,11,48,17],[46,18,48,24],[46,25,48,31],[46,32,48,38],[46,39,48,45],[43,1,45,10],[43,11,45,17],[43,18,45,24],[43,25,45,31],[43,32,45,38],[43,39,45,45],[31,40,34,40],[31,41,34,45],[35,25,37,30],[35,31,37,45],[38,25,40,45],[40,1,42,2],[40,3,42,14],[25,3,28,8],[25,10,28,21],[26,25,29,27],[26,28,29,40],[26,43,28,44],[31,25,34,28],[31,29,34,30],[31,31,34,34],[31,35,34,36],[31,37,34,39],[13,1,16,18],[17,25,18,28],[18,1,20,2],[18,3,20,7],[18,8,21,9],[18,11,21,23],[19,25,25,45],[21,3,22,7],[25,1,28,2],[17,30,18,34],[17,35,18,45],[1,1,4,34],[1,36,3,42],[1,43,3,45],[5,16,6,38],[6,40,7,42],[6,43,7,45],[7,1,10,9],[7,10,10,30],[8,31,10,34],[8,40,12,42],[8,43,12,45]]}
[]
[null,"　セリオスピリッツ㈱  　契約分･契約外 請求書",null,null,null,null,null,null,null,null,null,null,null,null,null,null,null,null,null,null,null,null,null,null,null,null,null,null,null,null,null,null,null,null,null,null,null,null,null,null,null,null,null,"発行"]
[]
[]
[]
[null,null,null,null,null,null,null,null,null,null,null,null,null,null,null,null,"▲ どちらかを丸囲みして下さい （※ 契約分・契約外は別々に提出して下さい）"]
[null,null,null,null,null,null,null,null,null,null,null,null,null,null,null,null,null,null,null,null,null,null,null,null,null,null,null,null,null,null,null,null,null,null,null,null,null,null,null,null,"決済",null,null,"確認"]
[null," ｾﾘｵｽﾋﾟﾘｯﾂ㈱"]
[null,null,null,null,null,null,null,null,null,null,null,null,null,null,null,null,null,null,null,null,null,null,null,null,null,null,null,null,null,null,null,"御中"]
[]
[]
[]
[]
[null,"下記の通り請求致します。"]
[]
[]
[]
[null,null,null,null,null,null,null,null,null,null,null,null,null,null,null,null,null,null,null,null,null,null,null,null,null,"請求者名",null,null,null," 【登録番号】","【登録番号】"]
[null,"①",null,"請求金額",null,null,null,null,"￥",null,null,{"$f":"IF(T68=0,AN108,T68)","v":0}]
[null,null,null,null,null,null,null,null,null,null,null,null,null,null,null,null,null,null,null,null,null,null,null,null,null,"岡山県岡山市〇区〇〇町〇丁目〇〇-〇\n\n○○○○　株式会社"]
[]
[null,null,null,"(税込)"]
[]
[]
[]
[null,"➁",null,"物件番号"]
[null,null,null,null,null,null,null,null,null,null,null,null,null,null,null,null,null,null,null,null,null,null,null,null,null,"TEL",null,null,"〇〇〇-〇〇〇〇",null,null,null,null,null,null,null,null,null,null,null,null,null,null,"㊞"]
[]
[]
[]
[]
[null,null,null,null,null,null,null,null,null,null,null,null,null,null,null,null,null,null,null,null,null,null,null,null,null,null,null,null,null,"銀行",null,null,null,null,null,"店",null,null,null,null,"№"]
[]
[]
[]
[null,null,null,null,null,null,null,null,null,null,null,null,null,null,null,null,null,null,null,null,null,null,null,null,null,"口座名義\n（カタカナ入力）",null,null,null,null,null,"〇〇〇〇（カ"]
[]
[]
[null,null,null,null,null,null,null,null,null,null,null,null,null,null,null,null,null,null,null,null,null,null,null,null,null,"▲ 契約分・契約外、両方共に銀行口座情報をご記入下さい。"]
[]
[null,"③",null,"契約分出来高検収欄"]
[]
[]
[null,"工 事 内 容",null,null,null,null,null,null,null,null,null,"注文金額(税抜)",null,null,null,null,null,null,"前回迄出来高",null,null,null,null,null,null,"当月出来高",null,null,null,null,null,null,"累計出来高",null,null,null,null,null,null,"残　高"]
[]
[]
[null,null,null,null,null,null,null,null,null,null,null,null,null,null,null,null,null,null,null,null,null,null,null,null,null,null,null,null,null,null,null,null,{"$f":"S47+Z47","v":0},null,null,null,null,null,null,{"$f":"L47-AG47","v":0}]
[]
[]
[null,null,null,null,null,null,null,null,null,null,null,null,null,null,null,null,null,null,null,null,null,null,null,null,null,null,null,null,null,null,null,null,{"$f":"S50+Z50","v":0},null,null,null,null,null,null,{"$f":"L50-AG50","v":0}]
[]
[]
[null,"小　計　",null,null,null,null,null,null,null,null,null,{"$f":"SUM(L47:R52)","v":0},null,null,null,null,null,null,{"$f":"SUM(S47:Y52)","v":0},null,null,null,null,null,null,{"$f":"SUM(Z47:AF52)","v":0},null,null,null,null,null,null,{"$f":"SUM(AG47:AM52)","v":0},null,null,null,null,null,null,{"$f":"SUM(AN47:AT52)","v":0}]
[]
[]
[null,"消費税（小計×",null,null,null,null,null,0.08,null,null,"）",{"$f":"ROUND(H56*L53,0)","v":0},null,null,null,null,null,null,{"$f":"ROUND(H56*S53,0)","v":0},null,null,null,null,null,null,{"$f":"ROUND(Z53*H56,0)","v":0},null,null,null,null,null,null,{"$f":"S56+Z56","v":0},null,null,null,null,null,null,{"$f":"L56-AG56","v":0}]
[]
[]
[]
[]
[null,null,null,"請求内訳(税込)"]
[]
[]
[null,"(A) 注文金額",null,null,null,null,null,null,null,null,"(B) 前回迄請求累計",null,null,null,null,null,null,null,null,"(C) 今回請求額",null,null,null,null,null,null,null,null,"(D) 今回迄請求累計",null,null,null,null,null,null,null,null,"(E) 請求残高"]
[]
[]
[null,"(イ)+(ロ)",null,null,null,null,null,null,null,null,null,null,null,null,null,null,null,null,null,null,null,null,null,null,null,null,null,null,"(B)+(C)",null,null,null,null,null,null,null,null,"(A)-(D)"]
[null,{"$f":"L53+L56","v":0},null,null,null,null,null,null,null,null,{"$f":"S53+S56","v":0},null,null,null,null,null,null,null,null,{"$f":"Z53+Z56","v":0},null,null,null,null,null,null,null,null,{"$f":"K68+T68","v":0},null,null,null,null,null,null,null,null,{"$f":"B68-AC68","v":0}]
[]
[]
[]
[]
[null,"④",null,"契約外記入欄"]
[]
[]
[null,"工事内容\n主納品物品名",null,null,null,null,null,null,null,null,null,null,null,null,null,null,null,null,null,null,null,null,null,null,null,null,null,null,"通信欄"]
[]
[]
[]
[]
[]
[null,"月日",null,null,"内　　　　　　　容",null,null,null,null,null,null,null,null,null,null,null,null,null,"数　量",null,null,null,"単　価",null,null,null,null,"金額（税抜）"]
[]
[]
[null,null,null,null,null,null,null,null,null,null,null,null,null,null,null,null,null,null,null,null,null,null,null,null,null,null,null,{"$f":"IF(S85*W85=0,\"\",S85*W85)","v":""}]
[]
[]
[null,null,null,null,null,null,null,null,null,null,null,null,null,null,null,null,null,null,null,null,null,null,null,null,null,null,null,{"$f":"IF(S88*W88=0,\"\",S88*W88)","v":""}]
[]
[]
[null,null,null,null,null,null,null,null,null,null,null,null,null,null,null,null,null,null,null,null,null,null,null,null,null,null,null,{"$f":"IF(S91*W91=0,\"\",S91*W91)","v":""}]
[]
[]
[null,null,null,null,null,null,null,null,null,null,null,null,null,null,null,null,null,null,null,null,null,null,null,null,null,null,null,{"$f":"IF(S94*W94=0,\"\",S94*W94)","v":""}]
[]
[]
[null,null,null,null,null,null,null,null,null,null,null,null,null,null,null,null,null,null,null,null,null,null,null,null,null,null,null,{"$f":"IF(S97*W97=0,\"\",S97*W97)","v":""}]
[]
[]
[null,null,null,null,null,null,null,null,null,null,null,null,null,null,null,null,null,null,null,null,null,null,null,null,null,null,null,{"$f":"IF(S100*W100=0,\"\",S100*W100)","v":""},null,null,null,null,null,null,null,"10％対象計",null,null,null,{"$f":"SUM(AB85:AH111)","v":0}]
[]
[]
[null,null,null,null,null,null,null,null,null,null,null,null,null,null,null,null,null,null,null,null,null,null,null,null,null,null,null,{"$f":"IF(S103*W103=0,\"\",S103*W103)","v":""}]
[null,null,null,null,null,null,null,null,null,null,null,null,null,null,null,null,null,null,null,null,null,null,null,null,null,null,null,null,null,null,null,null,null,null,null,"消費税",null,null,null,{"$f":"ROUND(AN100*AL106,0)","v":0}]
[]
[null,null,null,null,null,null,null,null,null,null,null,null,null,null,null,null,null,null,null,null,null,null,null,null,null,null,null,{"$f":"IF(S106*W106=0,\"\",S106*W106)","v":""},null,null,null,null,null,null,null,"税率",null,0.1]
[]
[null,null,null,null,null,null,null,null,null,null,null,null,null,null,null,null,null,null,null,null,null,null,null,null,null,null,null,null,null,null,null,null,null,null,null,"税込合計",null,null,null,{"$f":"AN100+AN104","v":0}]
[null,null,null,null,null,null,null,null,null,null,null,null,null,null,null,null,null,null,null,null,null,null,null,null,null,null,null,{"$f":"IF(S109*W109=0,\"\",S109*W109)","v":""}]
[]
[]
[null,"　　　　※ 請求書郵送先\n　　　　　　　セリオスピリッツ ㈱　プロパティマネジメント事業部\n　　　　　　　〒700-0833　岡山市北区天瀬４番３３号\n　　　　　　　　Tel： 086-230-1135　　　Fax： 086-230-1136"]
[]
[]
[]
[null,null,null,null,null,null,null,null,null,null,null,null,null,null,null,null,null,null,null,null,null,null,null,null,null,null,null,null,null,null,null,null,null,null,null,null,null,null,null,null,"保存７年"]
[]
[]
[null,null,null,null,null,null,null,null,null,null,null,null,null,null,null,null,null,null,null,null,null,null,null,null,null,null,null,null,null,null,null,null,null,null,null,"ｾﾘｵｽﾋﾟﾘｯﾂ㈱請求書 2020.3.2"]